Workbook

Sheet Sheet1
B1: Visualizing the Product Rule
B3: This DIGMath program helps you visualize
B4: the Product Rule for finding the derivative
C5: of the product of two functions:
C6: y = f(x) and y = g(x)
B7: on any interval from x = a to x = b.
A10: Enter the first function in terms of x: y = f(x) = | F10: sin(3*x)
A12: Enter the second function in terms of x: y = g(x) = | F12: x^3
I14: Now trace along the various curves:
A15: Now enter the interval for x : | I15: x = | J15: =D16+K15*Sheet2!B12 -> 1.117764471 | K15: 280
B16: Starting value a = | D16: 0 | I16: f(x) = | J16: =LOOKUP(J15,Sheet2!C3:C504,Sheet2!D3:D504) -> -0.1983995224 | L16: slope of f(x) = | M16: =LOOKUP(x0,Sheet2!C3:C504,Sheet2!E3:E504) -> -2.936729389
B17: Ending value b = | D17: 2 | I17: g(x) = | J17: =LOOKUP(J15,Sheet2!C$3:C$504,Sheet2!F$3:F$504) -> 1.38162257 | L17: slope of g(x) = | M17: =LOOKUP(x0,Sheet2!C3:C504,Sheet2!G3:G504) -> 3.734821774
I18: f(x)g(x) = | J18: =LOOKUP(x0,Sheet2!C$3:C$504,Sheet2!H$3:H$504) -> -0.274113258 | L18: slope of product f∙g is | M18: =LOOKUP(x0,Sheet2!C3:C504,Sheet2!I3:I504) -> -4.842223535
I20: f'(x)g'(x) = | J20: =LOOKUP(x0,Sheet2!C$3:C$504,Sheet2!J$3:J$504) -> -10.96816086 | L20: f'(x)g(x) + f(x)g'(x) = | M20: =LOOKUP(x0,Sheet2!C$3:C$504,Sheet2!K$3:K$504) -> -4.798438462
A23: Click each item below for suggestions and investigations
C24: Item 1
C25: Item 2
C26: Item 3
C27: Item 4
A31: To access/download all the DIGMath Apps for Calculus
A32: Click this link: | C32: DIGMath for Calculus
A34: Created by: Sheldon P. Gordon
A35: Farmingdale State College
A36: Development of this module was supported by the
A37: NSF's Division of Undergraduate Education
A38: under grants DUE-0310123 and DUE-0442160.

Sheet Sheet2
C1: x | D1: y = f(x) | E1: f'(x) | F1: y = g(x) | G1: g'(x) | H1: f g | I1: slope of fg | J1: f' * g' | K1: fg' + f'g | M1: Tracing points | S1: Product
M2: =x0 -> 1.117764471 | N2: =Sheet1!J16 -> -0.1983995224 | P2: =x0 -> 1.117764471 | Q2: =Sheet1!J17 -> 1.38162257 | S2: =x0 -> 1.117764471 | T2: =Sheet1!J18 -> -0.274113258
C3: =a -> 0 | D3: =SIN(3*x) -> 0 | E3: =(D4-D3)/dx -> 2.999928288 | F3: =x^3 -> 0 | G3: =(F4-F3)/dx -> 1.593619149e-05 | H3: =D3*F3 -> 0 | I3: =(H4-H3)/dx -> 1.908480305e-07 | J3: =E3*G3 -> 4.780743165e-05 | K3: =D3*G3+F3*E3 -> 0 | M3: =M2+40*dx -> 1.27744511 | N3: =N2+40*dx*LOOKUP(x0,C3:C504,E3:E504) -> -0.6673383469 | P3: =P2+40*dx -> 1.27744511 | Q3: =Q2+40*dx*LOOKUP(x0,C3:C504,G3:G504) -> 1.978001296 | S3: =S2+40*dx -> 1.27744511 | T3: =T2+40*dx*LOOKUP(x0,C3:C504,I3:I504) -> -1.047322605
C4: =C3+B$12 -> 0.003992015968 | D4: 0.01197576163 | E4: 2.999498026 | F4: 6.36175309e-08 | G4: 0.0001115533404 | H4: =D4*F4 -> 7.618683853e-10 | I4: 2.86250148e-06 | J4: =E4*G4 -> 0.0003346040244 | K4: =D4*G4+F4*E4 -> 1.526756872e-06
C5: =C4+B$12 -> 0.007984031936 | D5: 0.02394980564 | E5: 2.998637564 | F5: 5.089402472e-07 | G5: 0.0003027876383 | H5: 1.218902e-08 | I5: 1.240238487e-05 | J5: 0.0009079503862 | K5: 8.777832431e-06 | M5: Tan to f'g'
C6: 0.0119760479 | D6: 0.03592041468 | E6: 2.997347026 | F6: 1.717673334e-06 | G6: 0.0005896390851 | H6: 6.169953845e-08 | I6: 3.338384474e-05 | J6: 0.001767352958 | K6: 2.632854351e-05 | M6: =x0 -> 1.117764471 | N6: =LOOKUP(x0,C3:C503,J3:J503) -> -10.96816086
C7: 0.01596806387 | D7: 0.04788587187 | E7: 2.995626596 | F7: 4.071521977e-06 | G7: 0.0009721076808 | H7: 1.949683797e-07 | I7: 7.037201979e-05 | J7: 0.002912071623 | K7: 5.874698337e-05 | M7: =M6+40*dx -> 1.27744511 | N7: =N6+40*dx*LOOKUP(x0,C3:C503,J3:J503) -> -12.7195638
C8: 0.01996007984 | D8: 0.05984446107 | E8: 2.993476521 | F8: 7.952191362e-06 | G8: 0.001450193426 | H8: 4.758946064e-07 | I8: 0.0001279205624 | J8: 0.00434111997 | K8: 0.0001105907421
C9: 0.02395209581 | D9: 0.07179446715 | E9: 2.99089711 | F9: 1.374138667e-05 | G9: 0.002023896319 | H9: 9.865555341e-07 | I9: 0.0002105683646 | J9: 0.006053265652 | K9: 0.0001864036315
C10: 0.02794411178 | D10: 0.08373417617 | E10: 2.987888732 | F10: 2.18208131e-05 | G10: 0.002693216362 | H10: 1.827147808e-06 | I10: 0.0003228362904 | J10: 0.008047030821 | K10: 0.0002907124149 | M10: Tangent to f'g+fg'
C11: 0.03193612774 | D11: 0.0956618757 | E11: 2.98445182 | F11: 3.257217582e-05 | G11: 0.003458153553 | H11: 3.115915434e-06 | I11: 0.0004692239147 | J11: 0.01032069267 | K11: 0.0004280235448 | M11: =x0 -> 1.117764471 | N11: =LOOKUP(x0,C3:C503,K3:K503) -> -4.798438462
A12: delta x = | B12: =(Sheet1!D17-Sheet1!D16)/501 -> 0.003992015968 | C12: 0.03592814371 | D12: 0.107575855 | E12: 2.980586865 | F12: 4.637718002e-05 | G12: 0.004318707894 | H12: 4.989064794e-06 | I12: 0.0006542062712 | J12: 0.01287228402 | K12: 0.0006028199079 | M12: =M11+40*dx -> 1.27744511 | N12: =N11+40*dx*LOOKUP(x0,C3:C503,I3:I503) -> -5.571647809
C13: 0.03992015968 | D13: 0.1194744054 | E13: 2.976294423 | F13: 6.36175309e-05 | G13: 0.005274879383 | H13: 7.600666676e-06 | I13: 0.0008822306104 | J13: 0.01569959409 | K13: 0.0008195575801
C14: 0.04391217565 | D14: 0.1313558202 | E14: 2.971575109 | F14: 8.467493362e-05 | G14: 0.006326668021 | H14: 1.112254536e-05 | I14: 0.001157713168 | J14: 0.01880016921 | K14: 0.001082662592
C15: 0.04790419162 | D15: 0.1432183955 | E15: 2.966429599 | F15: 0.0001099310934 | G15: 0.007474073808 | H15: 1.574415481e-05 | I15: 0.001485035947 | J15: 0.02217131377 | K15: 0.001396527708
C16: 0.05189620758 | D16: 0.1550604299 | E16: 2.960858632 | F16: 0.0001397677154 | G16: 0.008717096745 | H16: 2.167244203e-05 | I16: 0.001868543511 | J16: 0.02581009114 | K16: 0.001765509215
C17: 0.05588822355 | D17: 0.1668802248 | E17: 2.954863007 | F17: 0.0001745665048 | G17: 0.01005573683 | H17: 2.913169756e-05 | I17: 0.002312539797 | J17: 0.02971332477 | K17: 0.00219392373
C18: 0.05988023952 | D18: 0.1786760851 | E18: 2.948443584 | F18: 0.0002147091668 | G18: 0.01148999406 | H18: 3.836339335e-05 | I18: 0.00282128494 | J18: 0.03387759928 | K18: 0.002686045022
C19: 0.06387225549 | D19: 0.190446319 | E19: 2.941601283 | F19: 0.0002605774065 | G19: 0.01301986845 | H19: 4.962600788e-05 | I19: 0.003398992117 | J19: 0.03829926173 | K19: 0.003246100853
C20: 0.06786427146 | D20: 0.2021892383 | E20: 2.934337086 | F20: 0.0003125529293 | G20: 0.01464535998 | H20: 6.319483869e-05 | I20: 0.004049824412 | J20: 0.04297442292 | K20: 0.00387826983
C21: 0.07185628743 | D21: 0.2139031588 | E21: 2.926652034 | F21: 0.0003710174402 | G21: 0.01636646866 | H21: 7.936180241e-05 | I21: 0.004777891698 | J21: 0.04789895879 | K21: 0.00458667829
C22: 0.07584830339 | D22: 0.2255864004 | E22: 2.91854723 | F22: 0.0004363526444 | G22: 0.01818319449 | H22: 9.843522237e-05 | I22: 0.005587247542 | J22: 0.05306851192 | K22: 0.005375397195
C23: 0.07984031936 | D23: 0.2372372876 | E23: 2.910023837 | F23: 0.0005089402472 | G23: 0.02009553747 | H23: 0.0001207396038 | I23: 0.00648188613 | J23: 0.05847849305 | K23: 0.006248439052
C24: 0.08383233533 | D24: 0.2488541492 | E24: 2.901083076 | F24: 0.0005891619536 | G24: 0.0221034976 | H24: 0.0001466153967 | I24: 0.007465739224 | J24: 0.0641240828 | K24: 0.007209754861
C25: 0.0878243513 | D25: 0.2604353192 | E25: 2.89172623 | F25: 0.000677399469 | G25: 0.02420707487 | H25: 0.0001764187469 | I25: 0.008542673132 | J25: 0.07000023337 | K25: 0.008263231083
C26: 0.09181636727 | D26: 0.2719791364 | E26: 2.881954642 | F26: 0.0007740344984 | G26: 0.0264062693 | H26: 0.0002105212345 | I26: 0.009716485719 | J26: 0.07610167037 | K26: 0.009412686636
C27: 0.09580838323 | D27: 0.2834839454 | E27: 2.871769712 | F27: 0.0008794487471 | G27: 0.02870108087 | H27: 0.0002493096006 | I27: 0.01099090343 | J27: 0.08242289474 | K27: 0.01066186992
C28: 0.0998003992 | D28: 0.2949480959 | E28: 2.861172901 | F28: 0.0009940239202 | G28: 0.0310915096 | H28: 0.0002931854626 | I28: 0.01236957835 | J28: 0.08895818469 | K28: 0.01201445586
C29: 0.1037924152 | D29: 0.3063699438 | E29: 2.850165729 | F29: 0.001118141723 | G29: 0.03357755547 | H29: 0.0003425650169 | I29: 0.01385608531 | J29: 0.09570159785 | K29: 0.013474043
C30: 0.1077844311 | D30: 0.3177478509 | E30: 2.838749775 | F30: 0.001252183861 | G30: 0.03615921849 | H30: 0.0003978787307 | I30: 0.01545391898 | J30: 0.1026469733 | K30: 0.01504415062
C31: 0.1117764471 | D31: 0.3290801854 | E31: 2.826926676 | F31: 0.001396532038 | G31: 0.03883649866 | H31: 0.000459571022 | I31: 0.01716649104 | J31: 0.1097879341 | K31: 0.01672821585
C32: 0.1157684631 | D32: 0.3403653218 | E32: 2.814698128 | F32: 0.001551567961 | G32: 0.04160939598 | H32: 0.0005280999283 | I32: 0.01899712737 | J32: 0.117117889 | K32: 0.01852959089
C33: 0.119760479 | D33: 0.3516016417 | E33: 2.802065885 | F33: 0.001717673334 | G33: 0.04447791045 | H33: 0.0006039367642 | I33: 0.02094906527 | J33: 0.1246300355 | K33: 0.02045154018
C34: 0.123752495 | D34: 0.3627875334 | E34: 2.789031758 | F34: 0.001895229863 | G34: 0.04744204206 | H34: 0.0006875657672 | I34: 0.02302545072 | J34: 0.132317362 | K34: 0.0224972377
C35: 0.127744511 | D35: 0.3739213927 | E35: 2.775597617 | F35: 0.002084619252 | G35: 0.05050179083 | H35: 0.0007794837342 | I35: 0.02522933565 | J35: 0.1401726503 | K35: 0.02466976419
C36: 0.1317365269 | D36: 0.3850016227 | E36: 2.761765388 | F36: 0.002286223208 | G36: 0.05365715674 | H36: 0.000880199645 | I36: 0.02756367532 | J36: 0.1481884783 | K36: 0.02697210454
C37: 0.1357285429 | D37: 0.3960266343 | E37: 2.747537057 | F37: 0.002500423434 | G37: 0.05690813981 | H37: 0.000990234277 | I37: 0.03003132565 | J37: 0.1563572229 | K37: 0.02940714511
C38: 0.1397205589 | D38: 0.4069948461 | E38: 2.732914662 | F38: 0.002727601637 | G38: 0.06025474002 | H38: 0.001110119808 | I38: 0.03263504066 | J38: 0.1646710625 | K38: 0.03197767115
C39: 0.1437125749 | D39: 0.4179046851 | E39: 2.717900302 | F39: 0.002968139521 | G39: 0.06369695738 | H39: 0.001240399412 | I39: 0.03537746992 | J39: 0.1731219797 | K39: 0.03468636422
C40: 0.1477045908 | D40: 0.4287545865 | E40: 2.70249613 | F40: 0.003222418792 | G40: 0.06723479189 | H40: 0.001381626837 | I40: 0.03826115606 | J40: 0.1817017649 | K40: 0.03753579971
C41: 0.1516966068 | D41: 0.4395429942 | E41: 2.686704355 | F41: 0.003490821155 | G41: 0.07086824355 | H41: 0.001534365983 | I41: 0.04128853226 | J41: 0.1904020186 | K41: 0.04052844436
C42: 0.1556886228 | D42: 0.4502683608 | E42: 2.670527242 | F42: 0.003773728315 | G42: 0.07459731236 | H42: 0.001699190463 | I42: 0.04446191992 | J42: 0.1992141548 | K42: 0.04366665383
C43: 0.1596806387 | D43: 0.4609291482 | E43: 2.653967111 | F43: 0.004071521977 | G43: 0.07842199832 | H43: 0.001876683157 | I43: 0.04778352621 | J43: 0.2081294043 | K43: 0.04695267031
C44: 0.1636726547 | D44: 0.4715238273 | E44: 2.637026337 | F44: 0.004384583847 | G44: 0.08234230143 | H44: 0.002067435757 | I44: 0.05125544183 | J44: 0.2171388175 | K44: 0.0503886202
C45: 0.1676646707 | D45: 0.4820508786 | E45: 2.619707351 | F45: 0.004713295629 | G45: 0.08635822168 | H45: 0.002272048299 | I45: 0.05487963866 | J45: 0.2262332682 | K45: 0.05397651184
C46: 0.1716566866 | D46: 0.4925087921 | E46: 2.602012636 | F46: 0.005058039029 | G46: 0.09046975908 | H46: 0.002491128693 | I46: 0.0586579676 | J46: 0.2354034563 | K46: 0.05771823324
C47: 0.1756487026 | D47: 0.5028960681 | E47: 2.58394473 | F47: 0.005419195752 | G47: 0.09467691364 | H47: 0.002725292236 | I47: 0.06259215635 | J47: 0.244639912 | K47: 0.06161554991
C48: 0.1796407186 | D48: 0.5132112168 | E48: 2.565506224 | F48: 0.005797147503 | G48: 0.09897968534 | H48: 0.002975161124 | I48: 0.06668380733 | J48: 0.2539329988 | K48: 0.06567010275
C49: 0.1836327345 | D49: 0.5234527586 | E49: 2.546699763 | F49: 0.006192275987 | G49: 0.1033780742 | H49: 0.003241363947 | I49: 0.07093439559 | J49: 0.263272917 | K49: 0.0698834059
C50: 0.1876247505 | D50: 0.5336192247 | E50: 2.527528044 | F50: 0.00660496291 | G50: 0.1078720802 | H50: 0.003524535187 | I50: 0.07534526677 | J50: 0.2726497078 | K50: 0.07425684478
C51: 0.1916167665 | D51: 0.543709157 | E51: 2.507993816 | F51: 0.007035589977 | G51: 0.1124617033 | H51: 0.003825314695 | I51: 0.07991763518 | J51: 0.2820532565 | K51: 0.07879167407
C52: 0.1956087824 | D52: 0.5537211084 | E52: 2.488099883 | F52: 0.007484538892 | G52: 0.1171469436 | H52: 0.004144347171 | I52: 0.08465258187 | J52: 0.2914732967 | K52: 0.08348901581
C53: 0.1996007984 | D53: 0.5636536428 | E53: 2.467849095 | F53: 0.007952191362 | G53: 0.1219278011 | H53: 0.00448228163 | I53: 0.08955105277 | J53: 0.3008994136 | K53: 0.0883498575
C54: 0.2035928144 | D54: 0.5735053358 | E54: 2.44724436 | F54: 0.008438929091 | G54: 0.1268042757 | H54: 0.004839770862 | I54: 0.09461385691 | J54: 0.3103210484 | K54: 0.09337505033
C55: 0.2075848303 | D55: 0.5832747744 | E55: 2.42628863 | F55: 0.008945133784 | G55: 0.1317763674 | H55: 0.00521747089 | I55: 0.09984166467 | J55: 0.319727502 | K55: 0.09856530737
C56: 0.2115768463 | D56: 0.5929605573 | E56: 2.404984913 | F56: 0.009471187147 | G56: 0.1368440763 | H56: 0.005616040409 | I56: 0.1052350061 | J56: 0.3291079389 | K56: 0.103921202
C57: 0.2155688623 | D57: 0.6025612955 | E57: 2.383336263 | F57: 0.01001747088 | G57: 0.1420074024 | H57: 0.006036140234 | I57: 0.1107942693 | J57: 0.3384513916 | K57: 0.109443166
C58: 0.2195608782 | D58: 0.6120756119 | E58: 2.361345785 | F58: 0.0105843667 | G58: 0.1472663456 | H58: 0.006478432726 | I58: 0.1165196989 | J58: 0.3477467643 | K58: 0.1151314883
C59: 0.2235528942 | D59: 0.621502142 | E59: 2.339016634 | F59: 0.01117225631 | G59: 0.1526209059 | H59: 0.006943581225 | I59: 0.1224113944 | J59: 0.3569828375 | K59: 0.1209863133
C60: 0.2275449102 | D60: 0.6308395338 | E60: 2.316352011 | F60: 0.0117815214 | G60: 0.1580710834 | H60: 0.007432249466 | I60: 0.1284693091 | J60: 0.3661482719 | K60: 0.1270076393
C61: 0.2315369261 | D61: 0.640086448 | E61: 2.293355168 | F61: 0.01241254369 | G61: 0.163616878 | H61: 0.007945101 | I61: 0.1346932481 | J61: 0.3752316128 | K61: 0.1331953175
C62: 0.2355289421 | D62: 0.6492415584 | E62: 2.270029403 | F62: 0.01306570488 | G62: 0.1692582898 | H62: 0.008482798597 | I62: 0.1410828676 | J62: 0.3842212945 | K62: 0.1395490501
C63: 0.2395209581 | D63: 0.658303552 | E63: 2.246378061 | F63: 0.01374138667 | G63: 0.1749953187 | H63: 0.009046003657 | I63: 0.1476376735 | J63: 0.3931056448 | K63: 0.1460683895
C64: 0.2435129741 | D64: 0.6672711291 | E64: 2.222404534 | F64: 0.01443997078 | G64: 0.1808279648 | H64: 0.009635375607 | I64: 0.1543570198 | J64: 0.401872889 | K64: 0.1527527368
C65: 0.24750499 | D65: 0.6761430035 | E65: 2.198112262 | F65: 0.0151618389 | G65: 0.1867562281 | H65: 0.0102515713 | I65: 0.1612401081 | J65: 0.4105111548 | K65: 0.159601341
C66: 0.251497006 | D66: 0.6849179028 | E66: 2.173504727 | F66: 0.01590737275 | G66: 0.1927801084 | H66: 0.01089524438 | I66: 0.168285986 | J66: 0.419008477 | K66: 0.1666132974
C67: 0.255489022 | D67: =SIN(3*x) -> 0.6935945684 | E67: =(D68-D67)/dx -> 2.148585459 | F67: =x^3 -> 0.01667695402 | G67: =(F68-F67)/dx -> 0.198899606 | H67: 0.01156704472 | I67: =(H68-H67)/dx -> 0.1754935465 | J67: 0.4273528013 | K67: 0.1737875473
C68: 0.2594810379 | D68: 0.7021717558 | E68: 2.123358033 | F68: 0.01747096442 | G68: 0.2051147207 | H68: =D68*F68 -> 0.01226761776 | I68: 0.1828615269 | J68: =E68*G68 -> 0.4355319898 | K68: =D68*G68+F68*E68 -> 0.1811228762
C69: =C68+B$12 -> 0.2634730539 | D69: 0.710648235 | E69: 2.097826066 | F69: 0.01828978566 | G69: 0.2114254525 | H69: 0.0129976039 | I69: 0.1903885079 | J69: 0.4435338253 | K69: 0.1886179138
C70: 0.2674650699 | D70: 0.7190227901 | E70: 2.071993221 | F70: 0.01913379944 | G70: 0.2178318015 | H70: 0.01375763786 | I70: 0.1980729129 | J70: 0.451346016 | K70: 0.1962711324
C71: 0.2714570858 | D71: 0.7272942202 | E71: 2.045863202 | F71: 0.02000338747 | G71: 0.2243337676 | H71: 0.01454834809 | I71: 0.2059130074 | J71: 0.4589562001 | K71: 0.2040808469
C72: 0.2754491018 | D72: 0.7354613387 | E72: 2.019439757 | F72: 0.02089893146 | G72: 0.2309313509 | H72: 0.01537035611 | I72: 0.213906898 | J72: 0.4663519512 | K72: 0.2120452135
C73: 0.2794411178 | D73: 0.7435229745 | E73: 1.992726676 | F73: 0.0218208131 | G73: 0.2376245513 | H73: 0.01622427586 | I73: 0.2220525321 | J73: 0.4735207823 | K73: 0.2201622296
C74: 0.2834331337 | D74: 0.7514779712 | E74: 1.96572779 | F74: 0.0227694141 | G74: 0.2444133689 | H74: 0.01711071311 | I74: 0.2303476973 | J74: 0.4804501515 | K74: 0.2284297326
C75: 0.2874251497 | D75: 0.7593251879 | E75: 1.938446972 | F75: 0.02374511617 | G75: 0.2512978036 | H75: 0.0180302648 | I75: 0.2387900211 | J75: 0.4871274665 | K75: 0.2368454005
C76: 0.2914171657 | D76: 0.7670634992 | E76: 1.910888134 | F76: 0.02474830102 | G76: 0.2582778555 | H76: 0.01898351838 | I76: 0.2473769702 | J76: 0.4935400892 | K76: 0.2454067503
C77: 0.2954091816 | D77: 0.7746917951 | E77: 1.883055228 | F77: 0.02577935034 | G77: 0.2653535245 | H77: 0.01997105119 | I77: 0.2561058506 | J77: 0.4996753416 | K77: 0.2541111387
C78: 0.2994011976 | D78: 0.7822089817 | E78: 1.854952247 | F78: 0.02683864585 | G78: 0.2725248107 | H78: 0.02099342984 | I78: 0.264973807 | J78: 0.50552051 | K78: 0.2629557611
C79: 0.3033932136 | D79: 0.7896139807 | E79: 1.826583222 | F79: 0.02792656924 | G79: 0.279791714 | H79: 0.02205120951 | I79: 0.2739778229 | J79: 0.5110628504 | K79: 0.2719376519
C80: 0.3073852295 | D80: 0.7969057301 | E80: 1.797952221 | F80: 0.02904350223 | G80: 0.2871542344 | H80: 0.02314493335 | I80: 0.2831147205 | J80: 0.5162895935 | K80: 0.2810536842
C81: 0.3113772455 | D81: 0.804083184 | E81: 1.76906335 | F81: 0.03018982652 | G81: 0.2946123721 | H81: 0.02427513184 | I81: 0.2923811604 | J81: 0.5211879498 | K81: 0.2903005698
C82: 0.3153692615 | D82: 0.8111453132 | E82: 1.739920753 | F82: 0.03136592382 | G82: 0.3021661268 | H82: 0.0254423221 | I82: 0.3017736422 | J82: 0.5257451148 | K82: 0.2996748593
C83: 0.3193612774 | D83: 0.8180911046 | E83: 1.710528609 | F83: 0.03257217582 | G83: 0.3098154987 | H83: 0.02664700729 | I83: 0.3112885042 | J83: 0.5299482742 | K83: 0.3091729422
C84: 0.3233532934 | D84: 0.8249195621 | E84: 1.680891135 | F84: 0.03380896424 | G84: 0.3175604878 | H84: 0.02788967597 | I84: 0.3209219235 | J84: 0.5337846087 | K84: 0.3187910468
C85: 0.3273453094 | D85: 0.8316297064 | E85: 1.65101258 | F85: 0.03507667077 | G85: 0.325401094 | H85: 0.02917080142 | I85: 0.3306699168 | J85: 0.5372412999 | K85: 0.328525241
C86: 0.3313373253 | D86: 0.838220575 | E86: 1.620897231 | F86: 0.03637567714 | G86: 0.3333373174 | H86: 0.03049084101 | I86: 0.3405283405 | J86: 0.5403055347 | K86: 0.3383714322
C87: 0.3353293413 | D87: 0.8446912226 | E87: 1.590549406 | F87: 0.03770636503 | G87: 0.3413691579 | H87: 0.03185023558 | I87: 0.3504928908 | J87: 0.5429645113 | K87: 0.3483253678
C88: 0.3393213573 | D88: 0.8510407212 | E88: 1.559973458 | F88: 0.03906911616 | G88: 0.3494966156 | H88: 0.0332494088 | I88: 0.3605591048 | J88: 0.545205444 | K88: 0.358382636
C89: 0.3433133733 | D89: 0.8572681602 | E89: 1.529173773 | F89: 0.04046431223 | G89: 0.3577196904 | H89: 0.0346887665 | I89: 0.3707223607 | J89: 0.5470155685 | K89: 0.3685386658
C90: 0.3473053892 | D90: 0.8633726463 | E90: 1.498154767 | F90: 0.04189233495 | G90: 0.3660383823 | H90: 0.03616869608 | I90: 0.3809778784 | J90: 0.5483821473 | K90: 0.3787887281
C91: 0.3512974052 | D91: 0.869353304 | E91: 1.46692089 | F91: 0.04335356601 | G91: 0.3744526914 | H91: 0.03768956586 | I91: 0.3913207205 | J91: 0.5492924753 | K91: 0.3891279361
C92: 0.3552894212 | D92: 0.8752092757 | E92: 1.435476621 | F92: 0.04484838714 | G92: 0.3829626177 | H92: 0.03925172442 | I92: 0.4017457929 | J92: 0.5497338844 | K92: 0.3995512464
C93: 0.3592814371 | D93: 0.8809397213 | E93: 1.40382647 | F93: 0.04637718002 | G93: 0.3915681611 | H93: 0.04085550004 | I93: 0.4122478458 | J93: 0.5496937495 | K93: 0.4100534596
C94: 0.3632734531 | D94: 0.8865438189 | E94: 1.371974977 | F94: 0.04794032637 | G94: 0.4002693216 | H94: 0.04250120003 | I94: 0.4228214747 | J94: 0.5491594935 | K94: 0.4206292212
C95: 0.3672654691 | D95: 0.892020765 | E95: 1.33992671 | F95: 0.0495382079 | G95: 0.4090660993 | H95: 0.0441891101 | I95: 0.433461121 | J95: 0.5481185927 | K95: 0.4312730228
C96: 0.371257485 | D96: 0.8973697738 | E96: 1.307686265 | F96: 0.0511712063 | G96: 0.4179584942 | H96: 0.04591949382 | I96: 0.4441610736 | J96: 0.5465585823 | K96: 0.441979203
C97: 0.375249501 | D97: 0.9025900782 | E97: 1.275258267 | F97: 0.05283970328 | G97: 0.4269465062 | H97: 0.04769259192 | I97: 0.45491547 | J97: 0.5444670615 | K97: 0.4527419488
C98: 0.379241517 | D98: 0.9076809296 | E98: 1.242647366 | F98: 0.05454408055 | G98: 0.4360301353 | H98: 0.04950862174 | I98: 0.4657182974 | J98: 0.541831699 | K98: 0.4635552966
C99: 0.3832335329 | D99: 0.9126415977 | E99: 1.209858239 | F99: 0.05628471981 | G99: 0.4452093816 | H99: 0.05136777662 | I99: 0.4765633938 | J99: 0.5386402385 | K99: 0.4744131334
C100: 0.3872255489 | D100: 0.9174713711 | E100: 1.17689559 | F100: 0.05806200277 | G100: 0.4544842451 | H100: 0.0532702253 | I100: 0.48744445 | J100: 0.5348805037 | K100: 0.4853091985
C101: 0.3912175649 | D101: 0.9221695571 | E101: 1.143764145 | F101: 0.05987631114 | G101: 0.4638547257 | H101: 0.05521611132 | I101: 0.4983550106 | J101: 0.5305404039 | K101: 0.4962370848
C102: 0.3952095808 | D102: 0.9267354819 | E102: 1.110468658 | F102: 0.06172802661 | G102: 0.4733208234 | H102: 0.05720555248 | I102: 0.5092884755 | J102: 0.5256079395 | K102: 0.5071902402
C103: 0.3992015968 | D103: 0.9311684905 | E103: 1.077013902 | F103: 0.0636175309 | G103: 0.4828825383 | H103: 0.05923864021 | I103: 0.520238102 | J103: 0.5200712069 | K103: 0.5181619695
C104: 0.4031936128 | D104: 0.9354679472 | E104: 1.043404677 | F104: 0.0655452057 | G104: 0.4925398704 | H104: 0.06131543902 | I104: 0.5311970061 | J104: 0.5139184044 | K104: 0.5291454356
C105: 0.4071856287 | D105: 0.9396332353 | E105: 1.009645803 | F105: 0.06751143273 | G105: 0.5022928196 | H105: 0.06343598595 | I105: 0.5421581641 | J105: 0.507137837 | K105: 0.5401336618
C106: 0.4111776447 | D106: 0.9436637575 | E106: 0.9757421209 | F106: 0.06951659368 | G106: 0.5121413859 | H106: 0.06560029 | I106: 0.553114415 | J106: 0.4997179221 | K106: 0.5511195331
C107: 0.4151696607 | D107: 0.9475589356 | E107: 0.9416984942 | F107: 0.07156107027 | G107: 0.5220855694 | H107: 0.06780833158 | I107: 0.564058462 | J107: 0.4916471945 | K107: 0.5620957985
C108: 0.4191616766 | D108: 0.951318211 | E108: 0.9075198053 | F108: 0.0736452442 | G108: 0.53212537 | H108: 0.07006006196 | I108: 0.5749828744 | J108: 0.4829143122 | K108: 0.5730550727
C109: 0.4231536926 | D109: 0.9549410446 | E109: 0.8732109562 | F109: 0.07576949718 | G109: 0.5422607878 | H109: 0.07235540278 | I109: 0.58588009 | J109: 0.4735080611 | K109: 0.5839898382
C110: 0.4271457086 | D110: 0.9584269166 | E110: 0.8387768678 | F110: 0.0779342109 | G110: 0.5524918227 | H110: 0.07469424545 | I110: 0.596742417 | J110: 0.4634173606 | K110: 0.5948924475
C111: 0.4311377246 | D111: 0.9617753273 | E111: 0.8042224786 | F111: 0.08013976708 | G111: 0.5628184748 | H111: 0.07707645071 | I111: 0.6075620362 | J111: 0.4526312688 | K111: 0.605755125
C112: 0.4351297405 | D112: 0.9649857963 | E112: 0.7695527446 | F112: 0.08238654742 | G112: 0.5732407441 | H112: 0.07950184806 | I112: 0.6183310034 | J112: 0.4411389879 | K112: 0.6165699696
C113: 0.4391217565 | D113: 0.9680578631 | E113: 0.7347726383 | F113: 0.08467493362 | G113: 0.5837586304 | H113: 0.0819702353 | I113: 0.6290412516 | J113: 0.428929869 | K113: 0.6273289567
C114: 0.4431137725 | D114: 0.9709910872 | E114: 0.699887148 | F114: 0.0870053074 | G114: 0.594372134 | H114: 0.08448137802 | I114: 0.6396845934 | J114: 0.4159934177 | K114: 0.638023941
C115: 0.4471057884 | D115: 0.9737850479 | E115: 0.664901277 | F115: 0.08937805045 | G115: 0.6050812547 | H115: 0.08703500913 | I115: 0.6502527235 | J115: 0.4023192989 | K115: 0.6486466584
C116: 0.4510978044 | D116: 0.9764393444 | E116: 0.6298200432 | F116: 0.09179354448 | G116: 0.6158859925 | H116: 0.08963082839 | I116: 0.6607372213 | J116: 0.3878973424 | K116: 0.6591887289
C117: 0.4550898204 | D117: 0.9789535961 | E117: 0.5946484781 | F117: 0.09425217119 | G117: 0.6267863475 | H117: 0.09226850193 | I117: 0.6711295534 | J117: 0.3727175476 | K117: 0.669641659
C118: 0.4590818363 | D118: 0.9813274423 | E118: 0.5593916261 | F118: 0.0967543123 | G118: 0.6377823196 | H118: 0.09494766182 | I118: 0.6814210764 | J118: 0.3567700888 | K118: 0.6799968445
C119: 0.4630738523 | D119: 0.9835605426 | E119: 0.5240545439 | F119: 0.0993003495 | G119: 0.6488739089 | H119: 0.09766790564 | I119: 0.6916030396 | J119: 0.3400453204 | K119: 0.6902455733
C120: 0.4670658683 | D120: 0.9856525767 | E120: 0.4886422997 | F120: 0.1018906645 | G120: 0.6600611153 | H120: 0.100428796 | I120: 0.7016665877 | J120: 0.3225337813 | K120: 0.7003790277
C121: 0.4710578842 | D121: 0.9876032446 | E121: 0.4531599725 | F121: 0.104525639 | G121: 0.6713439389 | H121: 0.1032298602 | I121: 0.7116027638 | J121: 0.3042262009 | K121: 0.710388288
C122: 0.4750499002 | D122: 0.9894122664 | E122: 0.4176126513 | F122: 0.1072056547 | G122: 0.6827223796 | H122: 0.1060705898 | I122: 0.7214025123 | J122: 0.285113503 | K122: 0.7202643346
C123: 0.4790419162 | D123: 0.9910793828 | E123: 0.3820054344 | F123: 0.1099310934 | G123: 0.6941964375 | H123: 0.1089504402 | I123: 0.7310566818 | J123: 0.2651868116 | K123: 0.7299980519
C124: 0.4830339321 | D124: 0.9926043546 | E124: 0.3463434287 | F124: 0.1127023367 | G124: 0.7057661125 | H124: 0.1118688301 | I124: 0.7405560285 | J124: 0.2444374553 | K124: 0.7395802303
C125: 0.4870259481 | D125: 0.9939869631 | E125: 0.3106317491 | F125: 0.1155197662 | G125: 0.7174314047 | H125: 0.1148251416 | I125: 0.7498912188 | J125: 0.2228569721 | K125: 0.7490015702
C126: 0.4910179641 | D126: 0.99522701 | E126: 0.2748755174 | F126: 0.1183837639 | G126: 0.729192314 | H126: 0.1178187193 | I126: 0.7590528329 | J126: 0.2004371146 | K126: 0.7582526847
C127: 0.49500998 | D127: 0.9963243174 | E127: 0.239079862 | F127: 0.1212947112 | G127: 0.7410488404 | H127: 0.1208488704 | I127: 0.7680313679 | J127: 0.1771698545 | K127: 0.767324103
C128: 0.499001996 | D128: 0.9972787281 | E128: 0.2032499168 | F128: 0.12425299 | G128: 0.7530009841 | H128: 0.1239148639 | I128: 0.7768172411 | J128: 0.1530473874 | K128: 0.7762062735
C129: 0.502994012 | D129: 0.998090105 | E129: 0.1673908207 | F129: 0.127258982 | G129: 0.7650487448 | H129: 0.1270159307 | I129: 0.7854007936 | J129: 0.1280621372 | K129: 0.7848895675
C130: 0.5069860279 | D130: 0.9987583318 | E130: 0.1315077167 | F130: 0.1303130688 | G130: 0.7771921227 | H130: 0.1301512632 | I130: 0.7937722932 | J130: 0.1022067615 | K130: 0.7933642821
C131: 0.5109780439 | D131: =SIN(3*x) -> 0.9992833127 | E131: =(D132-D131)/dx -> 0.09560575131 | F131: =x^3 -> 0.1334156322 | G131: =(F132-F131)/dx -> 0.7894311178 | H131: 0.1333200149 | I131: =(H132-H131)/dx -> 0.8019219383 | J131: 0.07547415512 | K131: 0.8016206443
C132: 0.5149700599 | D132: 0.9996649724 | E132: 0.05969007379 | F132: 0.1365670538 | G132: 0.80176573 | H132: =D132*F132 -> 0.1365213 | I132: 0.8098398616 | J132: =E132*G132 -> 0.04785745558 | K132: =D132*G132+F132*E132 -> 0.8096488139
C133: =C132+B$12 -> 0.5189620758 | D133: 0.9999032561 | E133: 0.02376583528 | F133: 0.1397677154 | G133: 0.8141959594 | H133: 0.1397541937 | I133: 0.8175161331 | J133: 0.01935004705 | K133: 0.8174388874
C134: 0.5229540918 | D134: 0.9999981297 | E134: -0.01216181183 | F134: 0.1430179986 | G134: 0.8267218059 | H134: 0.1430177312 | I134: 0.8249407642 | J134: -0.01005443504 | K134: 0.8249809017
C135: 0.5269461078 | D135: 0.9999495796 | E135: -0.04808771463 | F135: 0.1463182853 | G135: 0.8393432695 | H135: 0.1463109079 | I135: 0.8321037114 | J135: -0.04036209962 | K135: 0.8322648376
C136: 0.5309381238 | D136: 0.9997576127 | E136: -0.0840067205 | F136: 0.149668957 | G136: 0.8520603504 | H136: 0.1496326792 | I136: 0.8389948798 | J136: -0.07157879571 | K136: 0.8392806235
C137: 0.5349301397 | D137: 0.9994222565 | E137: -0.1199136778 | F137: 0.1530703956 | G137: 0.8648730483 | H137: 0.1529819601 | I137: 0.845604127 | J137: -0.1037101081 | K137: 0.8460181394
C138: 0.5389221557 | D138: 0.9989435592 | E138: -0.1558034366 | F138: 0.1565229826 | G138: 0.8777813634 | H138: 0.1563576253 | I138: 0.8519212672 | J138: -0.136761353 | K138: 0.8524672208
C139: 0.5429141717 | D139: 0.9983215894 | E139: -0.1916708494 | F139: 0.1600270998 | G139: 0.8907852957 | H139: 0.1597585086 | I139: 0.8579360749 | J139: -0.1707375743 | K139: 0.858617662
C140: 0.5469061876 | D140: 0.9975564363 | E140: -0.2275107721 | F140: 0.1635831289 | G140: 0.9038848451 | H140: 0.1631834031 | I140: 0.8636382886 | J140: -0.205643539 | K140: 0.8644592209
C141: 0.5508982036 | D141: 0.9966482096 | E141: -0.2633180642 | F141: 0.1671914517 | G141: 0.9170800116 | H141: 0.166631061 | I141: 0.8690176154 | J141: -0.2414837334 | K141: 0.8699816223
C142: 0.5548902196 | D142: 0.9955970397 | E142: -0.2990875902 | F142: 0.1708524497 | G142: 0.9303707953 | H142: 0.1701001932 | I142: 0.8740637344 | J142: -0.2782623592 | K142: 0.8751745622
C143: 0.5588822355 | D143: 0.9944030773 | E143: -0.3348142198 | F143: 0.1745665048 | G143: 0.9437571962 | H143: 0.1735894695 | I143: 0.8787663015 | J143: -0.3159833294 | K143: 0.880027712
C144: 0.5628742515 | D144: 0.9930664936 | E144: -0.3704928291 | F144: 0.1783339986 | G144: 0.9572392142 | H144: 0.1770975186 | I144: 0.8831149528 | J144: -0.3546502646 | K144: 0.8845307223
C145: 0.5668662675 | D145: 0.9915874803 | E145: -0.4061183008 | F145: 0.1821553128 | G145: 0.9708168493 | H145: 0.1806229276 | I145: 0.8870993092 | J145: -0.3942664892 | K145: 0.8886732273
C146: 0.5708582834 | D146: 0.9899662495 | E146: -0.4416855254 | F146: 0.1860308292 | G146: 0.9844901016 | H146: 0.1841642422 | I146: 0.8907089807 | J146: -0.4348350278 | K146: 0.8924448491
C147: 0.5748502994 | D147: 0.9882030339 | E147: -0.4771894016 | F147: 0.1899609294 | G147: 0.9982589711 | H147: 0.1877199667 | I147: 0.8939335704 | J147: -0.4763586011 | K147: 0.8958352016
C148: 0.5788423154 | D148: 0.9862980862 | E148: -0.5126248375 | F148: 0.1939459951 | G148: 1.012123458 | H148: 0.1912885638 | I148: 0.896762679 | J148: -0.518839623 | K148: 0.898833895
C149: 0.5828343313 | D149: 0.9842516796 | E149: -0.5479867506 | F149: 0.1979864081 | G149: 1.026083561 | H149: 0.1948684547 | I149: 0.8991859088 | J149: -0.5622801967 | K149: 0.9014305403
C150: 0.5868263473 | D150: 0.9820641078 | E150: -0.5832700693 | F150: 0.2020825501 | G150: 1.040139282 | H150: 0.1984580192 | I150: 0.9011928686 | J150: -0.6066821113 | K150: 0.9036147532
C151: 0.5908183633 | D151: 0.9797356843 | E151: -0.6184697331 | F151: 0.2062348027 | G151: 1.05429062 | H151: 0.2020555956 | I151: 0.9027731776 | J151: -0.6520468385 | K151: 0.905376159
C152: 0.5948103792 | D152: 0.9772667433 | E152: -0.6535806934 | F152: 0.2104435477 | G152: 1.068537576 | H152: 0.2056594805 | I152: 0.9039164704 | J152: -0.6983755296 | K152: 0.9067043967
C153: 0.5988023952 | D153: 0.9746576387 | E153: -0.6885979146 | F153: 0.2147091668 | G153: 1.082880148 | H153: 0.2092679295 | I153: 0.9046124009 | J153: -0.7456690116 | K153: 0.9075891235
C154: 0.6027944112 | D154: 0.9719087448 | E154: -0.7235163743 | F154: 0.2190320416 | G154: 1.097318337 | H154: 0.2128791566 | I154: 0.904850647 | J154: -0.7939277849 | K154: 0.9080200194
C155: 0.6067864271 | D155: 0.9690204559 | E155: -0.7583310644 | F155: 0.2234125539 | G155: 1.111852144 | H155: 0.2164913349 | I155: 0.9046209154 | J155: -0.8431520198 | K155: 0.9079867917
C156: 0.6107784431 | D156: 0.9659931862 | E156: -0.7930369916 | F156: 0.2278510855 | G156: 1.126481568 | H156: 0.220102596 | I156: 0.9039129458 | J156: -0.8933415536 | K156: 0.9074791795
C157: 0.6147704591 | D157: 0.9628273699 | E157: -0.8276291783 | F157: 0.2323480179 | G157: 1.141206609 | H157: 0.2237110309 | I157: 0.9027165158 | J157: -0.9444958878 | K157: 0.9064869585
C158: 0.618762475 | D158: 0.959523461 | E158: -0.862102663 | F158: 0.2369037329 | G158: 1.156027267 | H158: 0.2273146897 | I158: 0.9010214453 | J158: -0.9966141853 | K158: 0.9049999451
C159: 0.622754491 | D159: 0.9560819334 | E159: -0.8964525016 | F159: 0.2415186122 | G159: 1.170943542 | H159: 0.2309115817 | I159: 0.8988176012 | J159: -1.049695267 | K159: 0.9030080015
C160: 0.626746507 | D160: 0.9525032807 | E160: -0.9306737673 | F160: 0.2461930375 | G160: 1.185955434 | H160: 0.2344996759 | I160: 0.8960949022 | J160: -1.103737612 | K160: 0.9005010404
C161: 0.630738523 | D161: 0.9487880161 | E161: -0.9647615521 | F161: 0.2509273905 | G161: 1.201062944 | H161: 0.238076901 | I161: 0.8928433231 | J161: -1.15873935 | K161: 0.8974690291
C162: 0.6347305389 | D162: 0.9449366726 | E162: -0.9987109669 | F162: 0.255722053 | G162: 1.216266071 | H162: 0.2416411459 | I162: 0.8890529002 | J162: -1.214698263 | K162: 0.893901995
C163: 0.6387225549 | D163: 0.9409498025 | E163: -1.032517143 | F163: 0.2605774065 | G163: 1.231564814 | H163: 0.2451902592 | I163: 0.8847137352 | J163: -1.271611783 | K163: 0.8897900297
C164: 0.6427145709 | D164: 0.9368279776 | E164: -1.06617523 | F164: 0.265493833 | G164: 1.246959175 | H164: 0.2487220506 | I164: 0.8798160006 | J164: -1.329476986 | K164: 0.8851232939
C165: 0.6467065868 | D165: 0.932571789 | E165: -1.099680403 | F165: 0.2704717139 | G165: 1.262449154 | H165: 0.2522342901 | I165: 0.8743499441 | J165: -1.388290594 | K165: 0.8798920223
C166: 0.6506986028 | D166: 0.9281818473 | E166: -1.133027855 | F166: 0.2755114311 | G166: 1.278034749 | H166: 0.255724709 | I166: 0.8683058936 | J166: -1.448048971 | K166: 0.8740865282
C167: 0.6546906188 | D167: 0.923658782 | E167: -1.166212804 | F167: 0.2806133662 | G167: 1.293715961 | H167: 0.259191 | I167: 0.8616742618 | J167: -1.508748119 | K167: 0.8676972083
C168: 0.6586826347 | D168: 0.9190032419 | E168: -1.19923049 | F168: 0.285777901 | G168: 1.309492791 | H168: 0.2626308174 | I168: 0.854445551 | J168: -1.570383682 | K168: 0.8607145477
C169: 0.6626746507 | D169: 0.9142158946 | E169: -1.232076178 | F169: 0.2910054171 | G169: 1.325365238 | H169: 0.2660417777 | I169: 0.8466103581 | J169: -1.632950936 | K169: 0.8531291244
C170: 0.6666666667 | D170: 0.9092974268 | E170: -1.264745156 | F170: 0.2962962963 | G170: 1.341333301 | H170: 0.2694214598 | I170: 0.8381593794 | J170: -1.696444795 | K170: 0.8449316141
C171: 0.6706586826 | D171: 0.904248544 | E171: -1.297232739 | F171: 0.3016509203 | G171: 1.357396982 | H171: 0.2727674054 | I171: 0.829083415 | J171: -1.760859806 | K171: 0.8361127954
C172: 0.6746506986 | D172: 0.8990699702 | E172: -1.329534268 | F172: 0.3070696707 | G172: 1.373556281 | H172: 0.2760771197 | I172: 0.8193733741 | J172: -1.826190144 | K172: 0.8266635544
C173: 0.6786427146 | D173: 0.8937624481 | E173: -1.36164511 | F173: 0.3125529293 | G173: 1.389811196 | H173: 0.2793480713 | I173: 0.8090202799 | J173: -1.892429619 | K173: 0.8165748891
C174: 0.6826347305 | D174: 0.8883267391 | E174: -1.393560659 | F174: 0.3181010778 | G174: 1.406161728 | H174: 0.2825776931 | I174: 0.7980152738 | J174: -1.959571665 | K174: 0.8058379152
C175: 0.6866267465 | D175: 0.8827636227 | E175: -1.425276339 | F175: 0.3237144978 | G175: 1.422607878 | H175: 0.2857633828 | I175: 0.786349621 | J175: -2.027609348 | K175: 0.7944438699
C176: 0.6906187625 | D176: 0.8770738968 | E176: -1.456787599 | F176: 0.3293935712 | G176: 1.439149645 | H176: 0.2889025031 | I176: 0.7740147147 | J176: -2.096535356 | K176: 0.7823841173
C177: 0.6946107784 | D177: 0.8712583774 | E177: -1.488089921 | F177: 0.3351386796 | G177: 1.455787029 | H177: 0.2919923822 | I177: 0.7610020814 | J177: -2.166342005 | K177: 0.7696501533
C178: 0.6986027944 | D178: 0.8653178987 | E178: -1.519178815 | F178: 0.3409502046 | G178: 1.47252003 | H178: 0.2950303146 | I178: 0.7473033856 | J178: -2.237021234 | K178: 0.75623361
C179: 0.7025948104 | D179: 0.8592533126 | E179: -1.550049823 | F179: 0.3468285281 | G179: 1.489348648 | H179: 0.2980135617 | I179: 0.7329104341 | J179: -2.308564608 | K179: 0.7421262609
C180: 0.7065868263 | D180: 0.853065489 | E180: -1.580698516 | F180: 0.3527740317 | G180: 1.506272883 | H180: 0.3009393519 | I180: 0.7178151819 | J180: -2.380963311 | K180: 0.7273200254
C181: 0.7105788423 | D181: 0.8467553153 | E181: -1.611120499 | F181: 0.3587870971 | G181: 1.523292736 | H181: 0.3038048815 | I181: 0.7020097358 | J181: -2.454208153 | K181: 0.7118069739
C182: 0.7145708583 | D182: 0.8403236965 | E182: -1.641311409 | F182: 0.364868106 | G182: 1.540408206 | H182: 0.3066073156 | I182: 0.68548636 | J182: -2.528289562 | K182: 0.6955793323
C183: 0.7185628743 | D183: 0.8337715552 | E183: -1.671266915 | F183: 0.3710174402 | G183: 1.557619292 | H183: 0.3093437881 | I183: 0.6682374807 | J183: -2.603197589 | K183: 0.6786294871
C184: 0.7225548902 | D184: 0.8270998309 | E184: -1.700982721 | F184: 0.3772354813 | G184: 1.574925996 | H184: 0.3120114028 | I184: 0.6502556907 | J184: -2.678921907 | K184: 0.6609499898
C185: 0.7265469062 | D185: 0.8203094808 | E185: -1.730454566 | F185: 0.383522611 | G185: 1.592328317 | H185: 0.3146072339 | I185: 0.6315337543 | J185: -2.755451807 | K185: 0.6425335619
C186: 0.7305389222 | D186: 0.8134014785 | E186: -1.759678222 | F186: 0.3898792111 | G186: 1.609826256 | H186: 0.3171283267 | I186: 0.6120646118 | J186: -2.832776203 | K186: 0.6233730996
C187: 0.7345309381 | D187: 0.8063768149 | E187: -1.788649498 | F187: 0.3963056632 | G187: 1.627419811 | H187: 0.3195716984 | I187: 0.5918413845 | J187: -2.910883628 | K187: 0.6034616784
C188: 0.7385229541 | D188: 0.7992364976 | E188: -1.817364238 | F188: 0.4028023491 | G188: 1.645108984 | H188: 0.3219343387 | I188: 0.5708573794 | J188: -2.989762235 | K188: 0.5827925579
C189: 0.7425149701 | D189: 0.7919815505 | E189: -1.845818325 | F189: 0.4093696504 | G189: 1.662893773 | H189: 0.3242132105 | I189: 0.5491060935 | J189: -3.0693998 | K189: 0.5613591865
C190: 0.746506986 | D190: 0.7846130143 | E190: -1.874007677 | F190: 0.4160079489 | G190: 1.68077418 | H190: 0.3264052507 | I190: 0.5265812189 | J190: -3.149783718 | K190: 0.5391552058
C191: 0.750499002 | D191: 0.7771319457 | E191: -1.901928252 | F191: 0.4227176262 | G191: 1.698750204 | H191: 0.3285073714 | I191: 0.5032766471 | J191: -3.230901006 | K191: 0.5161744555
C192: 0.754491018 | D192: 0.7695394178 | E192: -1.929576044 | F192: 0.4294990642 | G192: 1.716821845 | H192: 0.3305164598 | I192: 0.4791864738 | J192: -3.312738305 | K192: 0.492410978
C193: 0.7584830339 | D193: 0.7618365194 | E193: -1.956947089 | F193: 0.4363526444 | G193: 1.734989104 | H193: 0.3324293798 | I193: 0.4543050031 | J193: -3.395281876 | K193: 0.4678590226
C194: 0.7624750499 | D194: 0.7540243554 | E194: -1.984037461 | F194: 0.4432787486 | G194: 1.753251979 | H194: 0.3342429727 | I194: 0.4286267527 | J194: -3.478517604 | K194: 0.4425130505
C195: 0.7664670659 | D195: =SIN(3*x) -> 0.7461040461 | E195: =(D196-D195)/dx -> -2.010843274 | F195: =x^3 -> 0.4502777585 | G195: =(F196-F195)/dx -> 1.771610472 | H195: 0.3359540575 | I195: =(H196-H195)/dx -> 0.4021464577 | J195: -3.562431001 | K195: 0.4163677391
C196: 0.7704590818 | D196: 0.7380767277 | E196: -2.037360683 | F196: 0.4573500558 | G196: 1.790064581 | H196: =D196*F196 -> 0.3375594326 | I196: 0.3748590753 | J196: =E196*G196 -> -3.647007199 | K196: =D196*G196+F196*E196 -> 0.3894179863
C197: =C196+B$12 -> 0.7744510978 | D197: 0.7299435513 | E197: -2.063585887 | F197: 0.4644960222 | G197: 1.808614308 | H197: 0.339055876 | I197: 0.3467597896 | J197: -3.732230961 | K197: 0.3616589152
C198: 0.7784431138 | D198: 0.7217056835 | E198: -2.089515122 | F198: 0.4717160394 | G198: 1.827259652 | H198: 0.3404401466 | I198: 0.3178440155 | J198: -3.818086676 | K198: 0.3330858785
C199: 0.7824351297 | D199: 0.7133643058 | E199: -2.115144671 | F199: 0.4790104891 | G199: 1.846000614 | H199: 0.341708985 | I199: 0.2881074032 | J199: -3.904558361 | K199: 0.3036944625
C200: 0.7864271457 | D200: 0.7049206145 | E200: -2.140470858 | F200: 0.486379753 | G200: 1.864837192 | H200: 0.3428591144 | I200: 0.2575458426 | J200: -3.991629664 | K200: 0.2734804919
... 304 more rows

Sheet Sheet3
